Cogmind - Beta 9.4 @@@ ROGUE MODE // 2020.01.16 @ 22:34:58 // Winter2019/RPGLIKE Player: Unknown Result: Destroyed by 8R-AWN with 8R-AWN's Boregun Performance ------------- Evolutions (1) 500 Regions Visited (5) 1000 Robots Destroyed (63) 315 Value Destroyed (783) 783 Prototype IDs (29) 580 Alien Tech Used (0) 0 Bonus (-1294) -1294 TOTAL SCORE: 1884 Bonus ------- Follower Combat Kills 7 Aligned with FarCom 300 Friendly Fire -1601 Cogmind --------- Core Integrity 0/600 Matter 120/300 Energy 78/140 System Corruption 1% Temperature Cool (4) Movement Hovering (76) Location -9/Exiles Parts ------- > --- POWER (1) -------- Light Deuterium Engine > --- PROPULSION (2) --- Combat Airjet Combat Airjet > --- UTILITY (4) ------ Heat Sink Improved Signal Interpreter Light Armor Plating Skeleton Box > --- WEAPON (3) ------- YOLO Cannon YI-UF0's Doublenader > --- INVENTORY (1) ---- Field Lobotomy Kit Peak State ------------ > --- POWER ------------ Light Deuterium Engine > --- PROPULSION ------- Combat Airjet Combat Airjet > --- UTILITY ---------- Heat Sink Improved Signal Interpreter Light Armor Plating Skeleton Box > --- WEAPON ----------- YOLO Cannon YI-UF0's Doublenader > --- INVENTORY -------- Field Lobotomy Kit [Rating: 48] Favorites ----------- Power Ion Engine Engine Ion Engine Propulsion Light Treads Treads Light Treads Leg Aluminum Leg Hover Unit Combat Airjet Utility Heat Sink Device Heat Sink Processor Improved Signal Interpreter Protection Light Armor Plating Weapon Advanced Beam Cannon Energy Gun Medium Laser Energy Cannon Advanced Beam Cannon Ballistic Gun Heavy Assault Rifle Launcher YI-UF0's Doublenader Special Weapon Field Lobotomy Kit Build | -11 -10 -10 -9 -9 -9 ------- Run | Scr Mat Min Mat Min Exi Slots Evolved 6 | 4 . . 1 1 . Power . | . . . . . . Propulsion 1 | 1 . . . . . Utility 3 | 1 . . 1 1 . Weapon 2 | 2 . . . . . Parts Attached 36 | 5 8 . 4 11 8 Power 2 | . 1 . . 1 . Engine 2 | . 1 . . 1 . Core . | . . . . . . Reactor . | . . . . . . Propulsion 5 | 2 . . . 2 1 Treads 2 | 2 . . . . . Leg . | . . . . . . Wheel . | . . . . . . Hover 3 | . . . . 2 1 Flight . | . . . . . . Utility 10 | 1 3 . 2 1 3 Device 4 | . 1 . . 1 2 Storage . | . . . . . . Processor 3 | 1 . . 2 . . Hackware . | . . . . . . Protection 3 | . 2 . . . 1 Artifact . | . . . . . . Weapon 19 | 2 4 . 2 7 4 Energy Gun 2 | 2 . . . . . Energy Cannon 9 | . 2 . 2 2 3 Ballistic Gun 3 | . 2 . . 1 . Ballistic Cannon . | . . . . . . Launcher 4 | . . . . 4 . Special Weapon 1 | . . . . . 1 Impact Weapon . | . . . . . . Slashing Weapon . | . . . . . . Piercing Weapon . | . . . . . . Special Melee Weapon . | . . . . . . Unidentified Prototypes 2 | . . . 1 1 . Parts Lost . | . . . . . . Power . | . . . . . . Propulsion . | . . . . . . Utility . | . . . . . . Weapon . | . . . . . . Highest Loss Streak . | . . . . . . Average Slot Usage (%) 96 | . 98 100 96 95 95 Engine 10 | . 12 12 11 10 10 Treads 14 | . 25 25 22 17 . Hover 6 | . . . . 2 20 Device 14 | . 10 12 11 12 20 Processor 8 | . 1 . 7 10 10 Protection 10 | . 10 12 11 10 9 Energy Cannon 18 | . 17 25 22 19 14 Ballistic Gun 7 | . 11 12 11 8 . Launcher 3 | . . . . 3 10 Naked Turns . | . . . . . . Heaviest Build 35 | 9 18 18 20 24 35 Greatest Support 44 | 40 40 40 40 44 44 Greatest Overweight (x) 1 | . . . . 1 . Average Overweight (x) . | . . . . . . Largest Inventory Capacity 1 | 1 1 1 1 1 1 Average Capacity 1 | 1 1 1 1 1 1 Most Carried 1 | 1 1 1 1 1 1 Average Carried . | . . 1 1 . 1 Final Capacity 1 | 1 1 1 1 1 1 Final Carried 1 | 1 1 1 1 1 1 Class Distribution -------------------- 61% | Gunner 32% | Scavenger-Mutant 6% | Mutant Dominant Class ---------------- Gunner | -10/Materials Gunner | -10/Mines Gunner | -9/Materials Gunner | -9/Mines Scavenger-Mutant | -9/Exiles Resources | -11 -10 -10 -9 -9 -9 ----------- Run | Scr Mat Min Mat Min Exi Matter Collected 821 | 271 94 23 53 380 . Remotely . | . . . . . . Salvage Created 2032 | 124 308 23 265 1222 90 Parts 89 | 4 24 3 9 47 2 Haulers Intercepted 3 | . 2 . 1 . . Recyclers Shooed 4 | 1 . . . 3 . Parts Field Recycled . | . . . . . . Retrieved Matter . | . . . . . . Parts Self-Destructed . | . . . . . . Prevented . | . . . . . . Kills | -11 -10 -10 -9 -9 -9 ------- Run | Scr Mat Min Mat Min Exi Combat Hostiles Destroyed 42 | . 4 2 4 25 7 Guns 2 | . . . 1 1 . Cannons 21 | . 4 2 3 12 . AOE 19 | . . . . 12 7 Classes Destroyed 10 | 2 4 1 1 1 1 Builder 4 | . 2 . . 2 . Tunneler 1 | 1 . . . . . Hauler 3 | . 2 . 1 . . Recycler 9 | 1 . . . 8 . Operator 1 | . 1 . . . . Turret 1 | . . . . . 1 Swarmer 2 | . . 2 . . . Grunt 15 | . 4 . 2 9 . Sentry 2 | . . . 2 . . Assembled 23 | . . . . 16 7 Best Kill Streak 9 | 1 2 2 2 8 9 Combat Bots Only 8 | . 2 2 2 8 7 Max Kills in Single Turn 3 | 1 2 1 1 2 3 Gunslinging . | . . . . . . Exploded 3 | . . . . 2 3 Melee . | . . . . . . Uniques/NPCs Destroyed 2 | . . . . 1 1 YI-UF0 (-9/Mines) EX-DEC (-9/Exiles) Combat | -11 -10 -10 -9 -9 -9 -------- Run | Scr Mat Min Mat Min Exi Damage Taken 1293 | . 67 47 270 241 668 Core 984 | . 46 37 211 176 514 Absorbed by Shields . | . . . . . . Redirected to Core 781 | . 46 21 189 143 382 Core Remaining (%) 100 | 100 . 100 . . . Volleys Fired 93 | 7 17 3 8 45 13 Largest 3 | 3 3 3 3 3 1 Hottest 159 | 110 140 143 159 159 100 Shots Fired 213 | 21 50 9 24 96 13 Gun 81 | 21 28 3 8 21 . Cannon 120 | . 22 6 16 67 9 Launcher 12 | . . . . 8 4 Special . | . . . . . . Kinetic 56 | 7 17 3 8 21 . Thermal 132 | 7 27 6 16 67 9 Explosive 12 | . . . . 8 4 Electromagnetic 13 | 7 6 . . . . Robot Hit Streak 33 | 5 10 2 16 33 4 Robot Miss Streak 4 | 4 3 3 1 3 3 Penetration Max . | . . . . . . Secondary Targets . | . . . . . . Shots Hit Robots 126 | 10 25 4 16 62 9 Core Hits 99 | 3 12 3 8 54 19 Critical Hits 12 | . 2 . . 8 2 Critical Kills 3 | . . . . 2 1 Critical Parts Destroyed 8 | . 2 . . 5 1 Melee Attacks . | . . . . . . Impact . | . . . . . . Slashing . | . . . . . . Piercing . | . . . . . . Sneak Attacks . | . . . . . . Combat Hostiles . | . . . . . . Follow-up Attacks . | . . . . . . Damage Inflicted 4223 | 125 351 70 308 1899 1470 Guns 457 | 125 116 . 74 142 . Cannons 2232 | . 227 70 223 1080 632 Explosions 1458 | . . . . 620 838 Melee . | . . . . . . Ramming 76 | . 8 . 11 57 . Kinetic 275 | 26 33 . 74 142 . Thermal 2716 | 50 240 70 223 1080 1053 Explosive 1037 | . . . . 620 417 Electromagnetic 119 | 49 70 . . . . Impact . | . . . . . . Slashing . | . . . . . . Piercing . | . . . . . . Highest Corruption 1 | . . . . . 1 Average Corruption 1 | . . . . . 1 Corruption Purged . | . . . . . . Overload Shots . | . . . . . . Overflow Damage 299 | . . . . 64 235 Projectiles 174 | . . . . 42 132 Explosions 125 | . . . . 22 103 Melee . | . . . . . . Knockbacks . | . . . . . . Impact . | . . . . . . Kinetic . | . . . . . . Secondary . | . . . . . . Self-Inflicted Damage 196 | . . . 134 30 32 Shots 5 | . . . 2 2 1 Rammed 11 | . 1 . 1 9 . Targets Rammed 12 | . 2 . 1 9 . Kicked . | . . . . . . Crushed 1 | . 1 . . . . Highest Temperature 333 | 220 186 180 261 333 50 Average Temperature 76 | 107 51 95 100 79 18 Received Heat Transfer 174 | . 36 . 57 81 . Effects 1 | . . . . 1 . Energy Bleed 1 | . . . . 1 . Siege Activations . | . . . . . . Robots Corrupted . | . . . . . . Combat Hostiles . | . . . . . . Parts Fried . | . . . . . . Impact Corruptions . | . . . . . . Robots Melted 1 | . . . . . 1 Combat Hostiles . | . . . . . . Parts Melted 2 | . . . 2 . . Heat Transferred 4259 | 148 518 148 444 1961 1040 Parts Sabotaged . | . . . . . . Parts Stolen . | . . . . . . Parts Stripped . | . . . . . . Power Chain Reactions . | . . . . . . Missiles Intercepted . | . . . . . . Alert | -11 -10 -10 -9 -9 -9 ------- Run | Scr Mat Min Mat Min Exi Peak Influence 235 | 10 170 140 235 120 . Average Influence 76 | 4 79 100 152 45 . Maximum Alert Level 1 | . . . 1 . . Low Security (%) 91 | 100 100 100 54 100 . Level 1 8 | . . . 45 . . Level 2 . | . . . . . . Level 3 . | . . . . . . Level 4 . | . . . . . . Level 5 . | . . . . . . High Security . | . . . . . . Max Security . | . . . . . . Squads Dispatched 4 | . 3 . . 1 . Investigation 2 | . 2 . . . . Extermination . | . . . . . . Reinforcement 2 | . 1 . . 1 . Assault . | . . . . . . Garrison . | . . . . . . Intercept . | . . . . . . Construction Impeded 1 | . . . . 1 . Haulers Reinforced . | . . . . . . Stealth | -11 -10 -10 -9 -9 -9 --------- Run | Scr Mat Min Mat Min Exi Distress Signals . | . . . . . . Communications Jammed . | . . . . . . Distress Signals . | . . . . . . Times Spotted 66 | . 13 2 12 23 16 Peak Tracking Total 11 | . 3 3 7 5 11 Tactical Retreats 6 | . 2 . 1 1 2 Traps | -11 -10 -10 -9 -9 -9 ------- Run | Scr Mat Min Mat Min Exi Traps Triggered 3 | . 3 . . . . Indirectly . | . . . . . . Trap Hack Attempts . | . . . . . . Triggered . | . . . . . . Disarmed . | . . . . . . Reprogrammed . | . . . . . . Reused . | . . . . . . Traps Extracted . | . . . . . . Installed . | . . . . . . Triggered . | . . . . . . Machines | -11 -10 -10 -9 -9 -9 ---------- Run | Scr Mat Min Mat Min Exi Machines Disabled 7 | . . . 2 . 5 Max in Single Turn 2 | . . . 2 . 1 Machines Sabotaged . | . . . . . . Garrisons Compromised . | . . . . . . Overloaded Fab Kills . | . . . . . . Fab Network Shutdowns . | . . . . . . Hacking | -11 -10 -10 -9 -9 -9 --------- Run | Scr Mat Min Mat Min Exi Machines Accessed 10 | . 1 . 4 . 5 Terminals 5 | . 1 . 4 . . Fabricators . | . . . . . . Repair Stations . | . . . . . . Recycling Units . | . . . . . . Scanalyzers . | . . . . . . Garrison Access . | . . . . . . Total Hacks 59 | . 2 . 8 . 49 Successful 55 | . 1 . 5 . 49 Failed 4 | . 1 . 3 . . Catastrophic . | . . . . . . Database Lockouts . | . . . . . . Manual 4 | . 2 . 1 . 1 Terminals 10 | . 2 . 8 . . Fabricators . | . . . . . . Repair Stations . | . . . . . . Recycling Units . | . . . . . . Scanalyzers . | . . . . . . Garrison Access . | . . . . . . Terminal Hacks 53 | . . . 4 . 49 Record 48 | . . . . . 48 Prototype ID Bank 2 | . . . 2 . . Terminal Index 1 | . . . 1 . . Locate Traps 1 | . . . 1 . . EX-Prototype ID Bank 1 | . . . . . 1 Fabricator Hacks . | . . . . . . Repair Station Hacks . | . . . . . . Recycling Unit Hacks . | . . . . . . Scanalyzer . | . . . . . . Garrison Access Hacks . | . . . . . . Unauthorized Hacks 4 | . 2 . 2 . . Terminals 2 | . 1 . 1 . . Botnet 2 | . 1 . 1 . . Fabricators . | . . . . . . Repair Stations . | . . . . . . Recycling Units . | . . . . . . Scanalyzers . | . . . . . . Garrison Access . | . . . . . . Data Cores Recovered . | . . . . . . Used . | . . . . . . Hacking Detections 5 | . 1 . 4 . . Full Trace Events . | . . . . . . Feedback Events . | . . . . . . Feedback Blocked . | . . . . . . Robot Schematics Acquired . | . . . . . . Robots Built . | . . . . . . Matter . | . . . . . . Time . | . . . . . . Total Robot Build Rating . | . . . . . . Part Schematics Acquired . | . . . . . . Parts Built . | . . . . . . Matter . | . . . . . . Time . | . . . . . . Total Part Build Rating . | . . . . . . Parts Repaired . | . . . . . . Time . | . . . . . . Parts Recycled . | . . . . . . Recycled Matter . | . . . . . . Retrieved Matter . | . . . . . . Retrieved Components . | . . . . . . Parts Scanalyzed . | . . . . . . Part Schematics Acquired . | . . . . . . Parts Damaged . | . . . . . . Bothacking | -11 -10 -10 -9 -9 -9 ------------ Run | Scr Mat Min Mat Min Exi Used RIF Installer . | . . . . . . Robots Hacked . | . . . . . . Non-combat . | . . . . . . Combat . | . . . . . . Robot Hacks Applied . | . . . . . . Relay Couplers Released . | . . . . . . Robots Rewired . | . . . . . . Allies Hacked . | . . . . . . Hacks Repelled . | . . . . . . Allies | -11 -10 -10 -9 -9 -9 -------- Run | Scr Mat Min Mat Min Exi Total Allies 1 | . . 1 . . . Largest Group 1 | . . 1 1 . . Highest-Rated Group 31 | . . 31 31 . . Highest-Rated Ally 31 | . . 31 31 . . Total Orders . | . . . . . . Ally Attacks 10 | . . 4 6 . . Total Damage 62 | . . 21 41 . . Kills 1 | . . 1 . . . Allies Corrupted . | . . . . . . Allies Melted . | . . . . . . Intel | -11 -10 -10 -9 -9 -9 ------- Run | Scr Mat Min Mat Min Exi Robot Analysis Total . | . . . . . . Derelict Logs Recovered 3 | . . . . 3 . Drone Launches . | . . . . . . Drone Recoveries . | . . . . . . Exploration | -11 -10 -10 -9 -9 -9 ------------- Run | Scr Mat Min Mat Min Exi Turns Passed 2971 | 60 383 198 422 1125 783 Spaces Moved 2089 | 20 184 110 225 608 942 Core . | . . . . . . Treads 982 | 15 184 110 225 448 . Legs 5 | 5 . . . . . Wheels . | . . . . . . Hover 1102 | . . . . 160 942 Flight . | . . . . . . Fastest Speed 76 | 120 160 160 160 76 76 Average Speed 115 | 150 160 160 160 138 76 Slowest Speed 160 | 160 160 160 160 160 76 Overloaded Moves . | . . . . . . Propulsion Burnouts . | . . . . . . Robots Hopped . | . . . . . . Cave-ins Triggered . | . . . . . . Exploration Rate (%) 47 | 3 34 41 31 94 83 Regions Visited 5 Branch Regions 3 Pre-discovered Areas 2 | . . . . 1 1 Known Exits Taken 2 | . . . 1 1 . Unknown Exits Taken 3 | 1 1 1 . . . Scrap Searched 2 | . . . . 2 . Spaces Dug 23 | . . . . 19 4 Terrain Destroyed 149 | . . . 30 66 53 Melee . | . . . . . . Projectile . | . . . . . . AOE 149 | . . . 30 66 53 Actions | -11 -10 -10 -9 -9 -9 --------- Run | Scr Mat Min Mat Min Exi Total 2441 | 32 234 125 268 802 980 Wait 154 | . 12 10 26 100 6 Move 2084 | 19 183 109 224 607 942 Hop . | . . . . . . Pick Up 5 | . 2 . . 2 1 Fast Attach 30 | 5 8 . 4 6 7 Attach 1 | . . . . 1 . Detach 3 | 1 1 . 1 . . Swap 5 | . . . . 4 1 Drop 26 | . 7 . 2 7 10 Fire 93 | 7 17 3 8 45 13 Melee . | . . . . . . Ram . | . . . . . . Kick . | . . . . . . Crush 12 | . 2 . 1 9 . Escape Stasis . | . . . . . . Rewire . | . . . . . . Trap . | . . . . . . Miscellaneous 28 | . 2 3 2 21 . Route ------- -11/Scrapyard -10/Materials -10/Mines -9/Materials (discovered 2 exits: *Mat / *Min) -9/Mines (discovered 3 exits: *Mat x2 / *Exi) -9/Exiles (discovered 1 exit: [*Min]) History --------- Turn | Location | Event 1 | -11/Scrapyard | Upgraded with Propulsion slot (x1) 1 | -11/Scrapyard | Upgraded with Utility slot (x1) 1 | -11/Scrapyard | Upgraded with Weapon slot (x2) 1 | -11/Scrapyard | Discovered new exit (range 3) 61 | -11/Scrapyard | Entered Materials 304 | -10/Materials | Build established: Gunner 396 | -10/Materials | Discovered new exit (range 6) 444 | -10/Materials | Entered Mines 447 | -10/Mines | Received a Mining Laser from a helpful Derelict 606 | -10/Mines | Discovered new exit (range 10) 642 | -10/Mines | Entered Materials 642 | -9/Materials | Accompanied by 1 ally 644 | -9/Materials | Reached level 2 644 | -9/Materials | Upgraded with Utility slot (x1) 679 | -9/Materials | Reached level 3 946 | -9/Materials | Discovered new exit (range 6) 956 | -9/Materials | Identified exit to Materials 1040 | -9/Materials | Discovered new exit (range 16) 1062 | -9/Materials | Identified exit to Mines 1064 | -9/Materials | Entered Mines 1071 | -9/Mines | Learned location of Zion (-7) 1106 | -9/Mines | Discovered exit to Materials (range 7) 1216 | -9/Mines | Learned Materials garrison access intel 1297 | -9/Mines | Assisted by bots powering up and referring to "LRC-V3" 1313 | -9/Mines | Destroyed YI-UF0 1320 | -9/Mines | Found Prototype Launcher 1320 | -9/Mines | Identified YI-UF0's Doublenader 1412 | -9/Mines | Reached level 4 1415 | -9/Mines | Upgraded with Utility slot (x1) 1578 | -9/Mines | Assembled infested the area 1773 | -9/Mines | Destroyed 8 combat bots 1901 | -9/Mines | Learned 2 Materials zone layouts 1980 | -9/Mines | Discovered exit to Materials (range 14) 2185 | -9/Mines | Deemed a non-threat by the Exiles lab entrance 2186 | -9/Mines | Discovered new exit (range 5) 2188 | -9/Mines | Identified exit to Exiles 2189 | -9/Mines | Entered Exiles 2199 | -9/Exiles | Discovered new exit (range 15) 2214 | -9/Exiles | Met 8R-AWN 2225 | -9/Exiles | Met EX-HEX 2266 | -9/Exiles | Met EX-DEC 2287 | -9/Exiles | Build established: Scavenger-Mutant 2321 | -9/Exiles | Visited The Gauntlet 2433 | -9/Exiles | Met EX-BIN 2508 | -9/Exiles | Aligned with FarCom system 2509 | -9/Exiles | Given EX-Vault access code 2526 | -9/Exiles | Opened EX-Vault 2531 | -9/Exiles | Found Field Lobotomy Kit 2548 | -9/Exiles | Warned to stay clear of 0b10 Research branches 2659 | -9/Exiles | Found YOLO Cannon 2757 | -9/Exiles | Found Skeleton Box 2907 | -9/Exiles | Attacked by the Exiles 2915 | -9/Exiles | Destroyed EX-DEC 2917 | -9/Exiles | Core integrity fell below 50% 2935 | -9/Exiles | Core integrity fell below 20% 2958 | -9/Exiles | Destroyed 7 combat bots 2972 | -9/Exiles | Destroyed by 8R-AWN with 8R-AWN's Boregun Last Messages --------------- 02916_ Knocked back. 02918_ as-91194 destroyed. 02918_ as-45217 destroyed. 02920_ DAS Turret destroyed. 02924_ as-64481 destroyed. 02926_ as-27183 destroyed. 02928_ Knocked back. 02930_ A-02 Transporter suffers critical hit. 02930_ A-02 Transporter destroyed. 02937_ The unstable cave ceiling collapses. 02937_ as-64157 destroyed. 02937_ as-95671 destroyed. 02946_ HV Slug penetrates A-02 Transporter. 02953_ Penetrated by HV Slug. 02961_ HV Slug penetrates Machine. 02961_ Machine disabled. 02961_ HV Slug penetrates Machine. 02963_ Penetrated by HV Slug. 02968_ Critical hit. 02968_ Penetrated by HV Slug. Map ----- +----------------------------------------------------+ | ???????????????????#"" #????????#" "X" "" | | ???????????????????#"" "#????????#" """ | | ???????????????????# ""#????????#" """""""" | | ???????????????????#"" ""#???????##" ######### | | ??????? ??????????### ###??????##"" #???????? | | ?????? #####????### ###?######"" #???????? | | ????? """#####X# #"###""""""" ##??????? | | ????? """""" " "" ##???### | | ?????# "" """ " #####"" | | ??????# " " " | | ??????### | | ????????### | | ??????????## | | ???????????## | | ????????????##" | | ?????????????#"" """""" | | ????????????##" ######""" | | ???????????##"" ""##????#####""" | | ??????????##; ""######?????##""" | | ??????????# ; ##??#??#"""" | | ??????????# # # ?##"" | | ??????????# ; ##"""" | | ??????????# %a " | | ??????????# g | | ??????????#; | | ??????????# ; @ | | ??????????##;; | | ???????????### " "" | | ?????????????#" ""# #""" " " | | ?????????????#" ""#### ######""" " | | ?????????????#" & ""##??# #????###""" | | ?????????????#" """#??## ####???#### | | ?????????????## ""##??#! "!#??????? | | ??????????????#" """##???#" !#??????? | | ??????????????##""" ##????#" "#??????? | | ???????????????##"""" ##?????#!!""!"#??????? | | ????????????????### #??????########??????? | | ??????????????????##### ##????????????????????? | | ??????????????????????## #?????????????????????? | | ???????????????????????# #?????????????????????? | | ???????????????????????# #?????????????????????? | | ???????????????????????# #?????????????????????? | | ?????????????####??????# #?????????????????????? | | ???""""""???#""""""????# #?????????????????????? | | ?#"""""""#??#"""""""#??# #?????????????????????? | | """"""" "#??#" """"#??# #?????????????????????? | | "#""" """#??#"" """#??# #?????????????????????? | | "#"" ""????"" ""???# #?????????????????????? | | "###"""########"""###### ########??#???????????? | | """" """""""" """""" """""""#?""""#????????? | +----------------------------------------------------+ Best States ------------- Heat Dissipation 45 Energy Generation 14 Energy Capacity 250 Matter Stores 300 Matter Capacity 300 Sight Range 16 Terrain Scan Density 60 Armor Coverage 150 Propulsion Shielding 33 Evasion (%) 49 Recoil Reduction 2 Item Schematics ----------------- None Robot Schematics ------------------ None Fabricated ------------ Nothing Alien Tech Used ----------------- None Achievements -------------- Backstab Collateral Damage Exterminator I Survived The Infestation Challenges ------------ None RPGLIKE | -11 -10 -10 -9 -9 -9 --------- Run | Scr Mat Min Mat Min Exi Levels Raised 3 | . . . 2 1 . XP Earned 8648 | 3000 570 873 2255 1600 350 XP Spent 7450 | 2550 . . 3000 1900 . Upgrades 12 | 5 . . 5 2 . Propulsion Slot 1 | 1 . . . . . Utility Slot 3 | 1 . . 1 1 . Weapon Slot 2 | 2 . . . . . Inventory Capacity 1 | 1 . . . . . Ranged Accuracy 5 | . . . 4 1 . Protomatter Created 241 | . 34 8 29 170 . Integrity Restored 497 | . 22 66 38 371 . Core 373 | . 17 66 18 272 . Parts 124 | . 5 . 20 99 . Protomatter Decayed 142 | . 26 4 15 97 . Game ------ Seed LinearRagnarokTorch Manual? 0 Play Time 00:48:56 Cumulative 358.0 hours Start 2020.01.14 @ 22:17:05 End 2020.01.16 @ 22:34:58 Sessions 5 Manual Loads 0 Difficulty Rogue Special Mode Winter2019/RPGLIKE Game No. 199 Rogue 190 Adventurer 0 Explorer 9 Win Type - Total 14 Types 6/0/6/2/0/0/0 Lore% 75 Gallery% 80 Achievement% 46 Wizard Run 0 Options --------- ASCII 1 Keyboard 0 Movement Arrows Keybinds 1 Fullscreen 2 Font 12/Smallcaps Map View 83x54 Tactical HUD 1 Map Filters NONE Filters NONE Steam 1 RUN: dc6927c5-a182-41a9-b501-6d8919fb5799